Cogmind - Beta 13 @@@ ROGUE MODE // 2024.04.05 @ 00:06:36 Player: desiring-machine Result: Destroyed by S-10 Pest with Light Assault Rifle Performance ------------- Evolutions (0) 0 Regions Visited (4) 800 Robots Destroyed (34) 170 Value Destroyed (401) 401 Prototype IDs (1) 20 Alien Tech Used (0) 0 Bonus (0) 0 TOTAL SCORE: 1391 Bonus ------- None Cogmind --------- Core Integrity 0/250 Matter 250/300 Energy 100/100 System Corruption 0% Temperature Cool (0) Movement Flying (37) Location -9/Mines Parts ------- > --- POWER (1) -------- (None) > --- PROPULSION (2) --- Flight Unit Flight Unit > --- UTILITY (2) ------ Salvage Targeting Computer > --- WEAPON (2) ------- Heavy Assault Rifle > --- INVENTORY (5) ---- Flight Unit Light Assault Rifle Grenade Launcher Rocket Launcher Peak State ------------ > --- POWER ------------ Light Ion Engine > --- PROPULSION ------- Flight Unit Flight Unit > --- UTILITY ---------- Experimental Sensor Array Salvage Targeting Computer > --- WEAPON ----------- Rocket Launcher > --- INVENTORY -------- Flight Unit Light Assault Rifle Heavy Assault Rifle Grenade Launcher [Rating: 16] Favorites ----------- Power Light Ion Engine Engine Light Ion Engine Propulsion Flight Unit Leg Aluminum Leg Wheel Wheel Hover Unit Hover Unit Flight Unit Flight Unit Utility Experimental Sensor Array Device Experimental Sensor Array Storage Small Storage Unit Processor Salvage Targeting Computer Weapon Grenade Launcher Energy Gun Medium Laser Ballistic Gun Light Assault Rifle Launcher Grenade Launcher Special Melee Weapon Datajack Build | -11 -10 -10 -10 -9 ------- Run | Yrd Mat Min Exi Min Slots Evolved . | . . . . . Power . | . . . . . Propulsion . | . . . . . Utility . | . . . . . Weapon . | . . . . . Parts Attached 43 | 8 19 8 . 8 Power 6 | 2 2 2 . . Engine 6 | 2 2 2 . . Core . | . . . . . Reactor . | . . . . . Propulsion 15 | 4 8 1 . 2 Treads . | . . . . . Leg 2 | 2 . . . . Wheel 2 | 2 . . . . Hover 2 | . 2 . . . Flight 9 | . 6 1 . 2 Utility 9 | . 6 2 . 1 Device 4 | . 2 2 . . Storage 2 | . 2 . . . Processor 3 | . 2 . . 1 Hackware . | . . . . . Protection . | . . . . . Artifact . | . . . . . Weapon 13 | 2 3 3 . 5 Energy Gun 2 | 1 1 . . . Energy Cannon . | . . . . . Ballistic Gun 5 | 1 . 2 . 2 Ballistic Cannon . | . . . . . Launcher 5 | . 1 1 . 3 Special Weapon . | . . . . . Impact Weapon . | . . . . . Slashing Weapon . | . . . . . Piercing Weapon . | . . . . . Special Melee Weapon 1 | . 1 . . . Unidentified Prototypes 1 | . . 1 . . Parts Lost 3 | . 1 . . 2 Power 2 | . 1 . . 1 Propulsion . | . . . . . Utility 1 | . . . . 1 Weapon . | . . . . . Highest Loss Streak 1 | . 1 . . 1 To Critical Strikes . | . . . . . Average Slot Usage (%) 74 | . 79 74 71 73 Engine 13 | . 11 14 14 13 Hover 1 | . 5 . . . Flight 25 | . 20 28 28 28 Device 10 | . 8 17 14 3 Processor 5 | . 6 . . 13 Energy Gun 2 | . 5 2 . . Ballistic Gun 4 | . 8 3 . 4 Launcher 9 | . 7 8 14 9 Naked Turns . | . . . . . Heaviest Build 13 | 6 13 8 7 8 Greatest Support 20 | 20 20 8 8 8 Greatest Overweight (x) 1 | . 1 . . . Average Overweight (x) . | . . . . . Largest Inventory Capacity 8 | 5 8 5 5 5 Average Capacity 5 | 5 5 5 5 5 Most Carried 5 | 4 5 5 5 4 Average Carried 3 | 2 3 4 3 3 Final Capacity 5 | 5 5 5 5 5 Final Carried 5 | 4 4 5 3 4 Class Distribution -------------------- 74% | Mutant 25% | Scavenger-Mutant Dominant Class ---------------- Scavenger-Mutant | -10/Materials Mutant | -10/Mines Mutant | -10/Exiles Mutant | -9/Mines Resources | -11 -10 -10 -10 -9 ----------- Run | Yrd Mat Min Exi Min Matter Collected 889 | 199 262 162 . 266 Remotely . | . . . . . Salvage Created 549 | 70 183 31 . 265 Parts 57 | 7 25 5 . 20 Haulers Intercepted . | . . . . . Recyclers Shooed . | . . . . . Parts Field Recycled . | . . . . . Retrieved Matter . | . . . . . Parts Self-Destructed . | . . . . . Prevented . | . . . . . Kills | -11 -10 -10 -10 -9 ------- Run | Yrd Mat Min Exi Min Combat Hostiles Destroyed 23 | 1 8 3 . 11 Guns 12 | 1 5 . . 6 AOE 11 | . 3 3 . 5 Classes Destroyed 9 | 2 4 . . 3 Worker 4 | 1 . . . 3 Builder 1 | . 1 . . . Tunneler 1 | . . . . 1 Recycler 1 | . . . . 1 Operator 1 | . 1 . . . Watcher 3 | . 3 . . . Swarmer 20 | . 8 3 . 9 Grunt 2 | 1 . . . 1 Duelist 1 | . . . . 1 Best Kill Streak 9 | 1 3 3 . 9 Combat Bots Only 4 | 1 3 3 . 4 Max Kills in Single Turn 3 | 1 2 3 . 2 Gunslinging . | . . . . . Exploded 3 | . 2 3 . 2 Melee . | . . . . . Uniques/NPCs Destroyed . | . . . . . Combat | -11 -10 -10 -10 -9 -------- Run | Yrd Mat Min Exi Min Hostile Shots Fired 129 | 3 54 4 . 68 Missed 54 | 1 16 2 . 35 Damage Taken 724 | 23 361 47 . 293 Core 252 | . 101 12 . 139 Absorbed by Shields . | . . . . . Core Remaining (%) 100 | 100 . . . . Volleys Fired 83 | 4 38 1 . 40 Largest 2 | 2 2 1 . 1 Hottest 70 | 70 50 30 . 33 Shots Fired 92 | 8 43 1 . 40 Gun 71 | 8 38 . . 25 Cannon . | . . . . . Launcher 21 | . 5 1 . 15 Special . | . . . . . Kinetic 53 | 4 24 . . 25 Thermal 18 | 4 14 . . . Explosive 21 | . 5 1 . 15 Electromagnetic . | . . . . . Robot Hit Streak 6 | 4 6 . . 4 Robot Miss Streak 6 | 1 6 . . 4 Penetration Max . | . . . . . Secondary Targets . | . . . . . Shots Hit Robots 43 | 5 20 . . 18 Core Hits 40 | 3 15 3 . 19 Critical Kills . | . . . . . Critical Parts Destroyed . | . . . . . Critical Strikes . | . . . . . Melee Attacks . | . . . . . Impact . | . . . . . Slashing . | . . . . . Piercing . | . . . . . Sneak Attacks . | . . . . . Combat Hostiles . | . . . . . Follow-up Attacks . | . . . . . Damage Inflicted 1666 | 57 503 124 . 982 Guns 425 | 57 169 . . 199 Cannons . | . . . . . Explosions 1241 | . 334 124 . 783 Melee . | . . . . . Ramming . | . . . . . Kinetic 323 | 18 106 . . 199 Thermal 102 | 39 63 . . . Explosive 1241 | . 334 124 . 783 Electromagnetic . | . . . . . Impact . | . . . . . Slashing . | . . . . . Piercing . | . . . . . Highest Corruption . | . . . . . Average Corruption . | . . . . . Corruption Purged . | . . . . . Corruption Blocked . | . . . . . Overload Shots . | . . . . . Overflow Damage 62 | . 13 . . 49 Projectiles . | . . . . . Explosions 62 | . 13 . . 49 Melee . | . . . . . Knockbacks . | . . . . . Impact . | . . . . . Kinetic . | . . . . . Secondary . | . . . . . Self-Inflicted Damage 93 | . 58 . . 35 Shots 6 | . 5 . . 1 Rammed . | . . . . . Targets Rammed . | . . . . . Kicked . | . . . . . Crushed . | . . . . . Highest Temperature 82 | 82 72 . . 2 Average Temperature 19 | 34 17 . . 1 Received Heat Transfer 30 | 12 . 18 . . Siege Activations . | . . . . . Robots Corrupted . | . . . . . Combat Hostiles . | . . . . . Parts Fried . | . . . . . Impact Corruptions . | . . . . . Robots Melted . | . . . . . Combat Hostiles . | . . . . . Parts Melted . | . . . . . Heat Transferred 296 | 111 185 . . . Parts Sabotaged . | . . . . . Parts Stolen . | . . . . . Parts Stripped . | . . . . . Power Chain Reactions . | . . . . . Alert | -11 -10 -10 -10 -9 ------- Run | Yrd Mat Min Exi Min Peak Influence 392 | 25 324 219 . 392 Initial 126 | . 16 126 . . Average 167 | 3 197 157 . 185 Maximum Alert Level 1 | . 1 1 . 1 Low Security (%) 54 | 100 36 73 . 51 Level 1 45 | . 63 26 . 48 Level 2 . | . . . . . Level 3 . | . . . . . Level 4 . | . . . . . Level 5 . | . . . . . High Security . | . . . . . Max Security . | . . . . . Squads Dispatched 1 | . 1 . . . Investigation . | . . . . . Extermination . | . . . . . Reinforcement 1 | . 1 . . . Assault . | . . . . . Garrison . | . . . . . Intercept . | . . . . . Searches Triggered . | . . . . . Construction Impeded . | . . . . . Haulers Reinforced . | . . . . . Active Scanning Responses . | . . . . . Cargo Convoy Interrupts . | . . . . . Stealth | -11 -10 -10 -10 -9 --------- Run | Yrd Mat Min Exi Min Distress Signals 1 | . 1 . . . Communications Jammed . | . . . . . Distress Signals . | . . . . . Times Spotted 40 | 1 17 5 . 17 Peak Tracking Total 4 | 1 4 3 . 4 Tactical Retreats 2 | . 1 . . 1 Traps | -11 -10 -10 -10 -9 ------- Run | Yrd Mat Min Exi Min Traps Triggered . | . . . . . Indirectly . | . . . . . Trap Hack Attempts . | . . . . . Triggered . | . . . . . Disarmed . | . . . . . Reprogrammed . | . . . . . Reused . | . . . . . Traps Extracted . | . . . . . Installed . | . . . . . Triggered . | . . . . . Machines | -11 -10 -10 -10 -9 ---------- Run | Yrd Mat Min Exi Min Machines Disabled . | . . . . . Max in Single Turn . | . . . . . Machines Repaired . | . . . . . Machines Dismantled . | . . . . . Machines Sabotaged . | . . . . . Overloaded Fab Kills . | . . . . . Hacking | -11 -10 -10 -10 -9 --------- Run | Yrd Mat Min Exi Min Machines Accessed 5 | . 1 . 4 . Terminals 1 | . 1 . . . Fabricators . | . . . . . Repair Stations . | . . . . . Recycling Units . | . . . . . Scanalyzers . | . . . . . Garrison Access . | . . . . . Total Hacks 52 | . 3 . 49 . Successful 50 | . 1 . 49 . Failed 2 | . 2 . . . Catastrophic 1 | . 1 . . . Database Lockouts . | . . . . . Manual 1 | . . . 1 . Terminals 3 | . 3 . . . Fabricators . | . . . . . Repair Stations . | . . . . . Recycling Units . | . . . . . Scanalyzers . | . . . . . Garrison Access . | . . . . . Terminal Hacks 50 | . 1 . 49 . Record 49 | . . . 49 . Locate Traps 1 | . 1 . . . Fabricator Hacks . | . . . . . Repair Station Hacks . | . . . . . Recycling Unit Hacks . | . . . . . Scanalyzer . | . . . . . Garrison Access Hacks . | . . . . . Unauthorized Hacks . | . . . . . Terminals . | . . . . . Fabricators . | . . . . . Repair Stations . | . . . . . Recycling Units . | . . . . . Scanalyzers . | . . . . . Garrison Access . | . . . . . Data Cores Recovered 1 | . 1 . . . Used . | . . . . . Hacking Detections 1 | . 1 . . . Full Trace Events . | . . . . . Feedback Events . | . . . . . Feedback Blocked . | . . . . . Robot Schematics Acquired . | . . . . . Robots Built . | . . . . . Authchips . | . . . . . Time . | . . . . . Total Robot Build Rating . | . . . . . Part Schematics Acquired . | . . . . . Parts Built . | . . . . . Authchips . | . . . . . Time . | . . . . . Total Part Build Rating . | . . . . . Parts Repaired . | . . . . . Time . | . . . . . Parts Recycled . | . . . . . Recycled Matter . | . . . . . Retrieved Matter . | . . . . . Retrieved Components . | . . . . . Parts Scanalyzed . | . . . . . Part Schematics Acquired . | . . . . . Parts Damaged . | . . . . . Bothacking | -11 -10 -10 -10 -9 ------------ Run | Yrd Mat Min Exi Min Used RIF Installer . | . . . . . Robots Hacked . | . . . . . Non-combat . | . . . . . Combat . | . . . . . Robot Hacks Applied . | . . . . . Relay Couplers Released . | . . . . . Fabnet Peak Effective % . | . . . . . Robots Rewired . | . . . . . Allies Hacked . | . . . . . Hacks Repelled . | . . . . . Allies | -11 -10 -10 -10 -9 -------- Run | Yrd Mat Min Exi Min Total Allies . | . . . . . Largest Group . | . . . . . Highest-Rated Group . | . . . . . Highest-Rated Ally . | . . . . . Total Orders . | . . . . . Ally Attacks . | . . . . . Total Damage . | . . . . . Kills . | . . . . . Allies Corrupted . | . . . . . Allies Melted . | . . . . . Intel | -11 -10 -10 -10 -9 ------- Run | Yrd Mat Min Exi Min Robot Analysis Total . | . . . . . Derelict Logs Recovered 3 | . . 1 . 2 Drone Launches . | . . . . . Drone Recoveries . | . . . . . Exploration | -11 -10 -10 -10 -9 ------------- Run | Yrd Mat Min Exi Min Turns Passed 1278 | 92 396 186 311 293 Spaces Moved 2475 | 90 644 417 808 516 Core 32 | 32 . . . . Treads . | . . . . . Legs . | . . . . . Wheels 84 | 58 26 . . . Hover 61 | . 61 . . . Flight 2298 | . 557 417 808 516 Fastest Speed 37 | 50 37 37 37 37 Average Speed 39 | 69 40 37 37 37 Slowest Speed 117 | 80 117 37 37 37 Overloaded Moves . | . . . . . Propulsion Burnouts . | . . . . . Robots Hopped 8 | . 2 1 . 5 Cave-ins Triggered . | . . . . . Exploration Rate (%) 68 | 5 72 96 93 76 Regions Visited 4 Branch Regions 3 Pre-discovered Areas 2 | . . . 1 1 Known Exits Taken . | . . . . . Unknown Exits Taken 4 | 1 1 1 1 . Scrap Searched 2 | . . 1 . 1 Spaces Dug . | . . . . . Terrain Destroyed 161 | . 30 8 . 123 Melee . | . . . . . Projectile . | . . . . . AOE 161 | . 30 8 . 123 Terrain Rammed . | . . . . . Walls Destroyed . | . . . . . Machines Disabled . | . . . . . Actions | -11 -10 -10 -10 -9 --------- Run | Yrd Mat Min Exi Min Total 2686 | 112 739 444 820 571 Wait 34 | 1 4 13 9 7 Move 2455 | 89 639 414 807 506 Hop 8 | . 2 1 . 5 Pick Up 35 | 8 19 4 1 3 Fast Attach . | . . . . . Attach 16 | 6 7 1 . 2 Detach 5 | 2 2 . . 1 Swap 27 | 2 12 7 . 6 Drop 23 | . 16 3 3 1 Fire 83 | 4 38 1 . 40 Melee . | . . . . . Ram . | . . . . . Kick . | . . . . . Crush . | . . . . . Escape Stasis . | . . . . . Rewire . | . . . . . Trap . | . . . . . Miscellaneous . | . . . . . Route ------- -11/Scrapyard -10/Materials (discovered 4 exits: [*Mat x2] / [*Min x2]) -10/Mines (discovered 3 exits: [*Mat x2] / *Exi) -10/Exiles (discovered 2 exits: [*Min x2]) -9/Mines (discovered 1 exit: *Mat) History --------- Turn | Location | Event 2 | -11/Scrapyard | Met Revision 17 74 | -11/Scrapyard | Discovered new exit (range 8) 93 | -11/Scrapyard | Entered Materials 165 | -10/Materials | Discovered new exit (range 16) 266 | -10/Materials | Discovered new exit (range 8) 384 | -10/Materials | Discovered new exit (range 9) 481 | -10/Materials | Discovered new exit (range 12) 489 | -10/Materials | Entered Mines 542 | -10/Mines | Joined a pair of Derelicts in attacking an 0b10 outpost 577 | -10/Mines | Learned Materials emergency access door positions 578 | -10/Mines | A weapon hastily lodged in a ceiling crevice suddenly fell to the ground 631 | -10/Mines | Discovered new exit (range 9) 643 | -10/Mines | Found a damaged Exp. Sensor Array with a note attached 644 | -10/Mines | Found Prototype Device 645 | -10/Mines | Identified Exp. Sensor Array 671 | -10/Mines | Discovered new exit (range 5) 674 | -10/Mines | Deemed a non-threat by the Exiles lab entrance 674 | -10/Mines | Discovered new exit (range 5) 675 | -10/Mines | Entered Exiles 688 | -10/Exiles | Met 8R-AWN 695 | -10/Exiles | Met EX-HEX 711 | -10/Exiles | Met EX-DEC 722 | -10/Exiles | Learned location of Zion (-7) 742 | -10/Exiles | Discovered new exit (range 10) 763 | -10/Exiles | Build established: Mutant 770 | -10/Exiles | Visited The Gauntlet 836 | -10/Exiles | Met EX-BIN 942 | -10/Exiles | Discovered new exit (range 15) 986 | -10/Exiles | Entered Mines 987 | -9/Mines | Learned location of Storage (-8) 1030 | -9/Mines | Received a Rocket Launcher from a helpful Derelict 1095 | -9/Mines | Core integrity fell below 50% 1179 | -9/Mines | Identified exit to Materials 1262 | -9/Mines | Core integrity fell below 20% 1279 | -9/Mines | Destroyed by S-10 Pest with Light Assault Rifle Last Messages --------------- S-10 Pest destroyed. K-01 Serf collects debris. Acquired 9 matter. Acquired 7 matter. Acquired 17 matter. K-01 Serf collects debris. Acquired Flight Unit. Acquired 1 matter. K-01 Serf collects debris. U-05 Engineer builds a Wall. U-05 Engineer lays Concrete. K-01 Serf destroyed. U-05 Engineer lays Concrete. Acquired 28 matter. U-05 Engineer lays Concrete. U-05 Engineer builds a Wall. U-05 Engineer lays Concrete. Lgt. Ion Engine destroyed. S-10 Pest destroyed. [Achievement: First Step to Greatness] Map ----- +----------------------------------------------------+ | ##??????# #?? #???????????????????????????? | | #???????# #?? #????????????????????? ?????? | | ????????# #?# ###??????????????????? ???? | | ######### ## ###???????????????? #???? | | ## # #???????????????? #???? | | #???????????????? #???? | | " ### #???????????????? ????? | | " ###???????????????##?## #????? | | " ### #???????????????# # ##???? | | " ##?# #??????????????## #???? | | ##??# #######????????## #???? | | ###???# = ## #????????# ##??? | | ###?### # # # #???????## #??? | | # ### # ### #???????# < #???? | | ########## # ##??????# #???? | | ## #???#### [ #????? | | ########## * *##### ## * #????? | | ####### = ### ## ####????? | | ####????# [ ## #???????? | | #???????# ## ##???????? | | #???????# ## [ ### #????????? | | #???????###### # # #????????? | | #????????????# # ###### t #????????? | | ##???????????#####????###s## # ###????????? | | #####??????????????????# ##### #??????????? | | #??????????????????#@#???# #??????????? | | ##?????????????????# #???# #####??????? | | #?????????????????#s##### #??????? | | #?????????????????# %#??????????? | | #?????????????????####### #??????????? | | #???????????????????????# #??????????? | | ## #???????????????????????# #??????????? | | ### #???????????????????????# #??????????? | | ##?# #?????????????# ##### ## ##?????? | | #??# #????????????????# #?????? | | ???# #??##????????????# #????? | | ???# ### #????????????####### #???? | | ???# ## #??????????????????# #???? | | ???# #??????????????????# #???? | | ???########?????????????????? #???? | | ????????????????????????????? #####???? | | ???????????????????????????? ##???????? | | ???????????????????????????? #????????? | | ???????????????????????????? #????????? | | ??????????????????????????? #????????? | | ??????????????????????????? ##????????? | | ??????????????????????????? #?????????? | | ?????????????????????????? ??????????? | | ??????????????????????????? ??????????? | | ????????????????????????????? ??????????? | +----------------------------------------------------+ Best States ------------- Heat Dissipation 25 Energy Generation 10 Energy Capacity 250 Matter Stores 300 Matter Capacity 400 Sight Range 16 Robot Scan Range 20 Terrain Scan Range 14 Terrain Scan Density 10 Evasion (%) 62 Salvage Targeting 1 Item Schematics ----------------- None Robot Schematics ------------------ None Fabricated ------------ Nothing Alien Tech Used ----------------- None Achievements -------------- First Step to Greatness Librarian Risk Taker Storm Trooper Tourist Uninvited Guest Challenges ------------ None Game ------ Seed TerrainDisruptionRouter Manual? 0 Play Time 01:03:45 Cumulative 1.0 hours Start 2024.04.04 @ 22:26:14 End 2024.04.05 @ 00:06:36 Sessions 1 Manual Loads 0 Difficulty Rogue Special Mode None Game No. 1 Rogue 1 Adventurer 0 Explorer 0 Win Type - Total 0 Types 0/0/0/0/0/0/0/0/0 Lore% 8 Gallery% 2 Achievement% 2 Wizard Run 0 Options --------- Layout 1 ASCII 0 Keyboard 0 Movement Numpad Keybinds 0 Fullscreen 1 Font 24/Smallcaps Map View 50x35 Zoom Use 0% Tactical HUD 0 Map Filters NONE Filters NONE Steam 0 RUN: 00989caf-6e50-4068-86c0-5e4ab024b0ed